[Event "Titled Tuesday Blitz January 18 2022"]
[White "Moskalenko, Alexander"]
[Black "Petrovskyi, Vadym"]
[WhiteFideId "4155351"]
[BlackFideId "14165210"]
[WhiteElo "2515"]
[BlackElo "2424"]
[Result "0-1"]
[Round "10"]
[TimeControl "180+1"]
[Date "2022.01.18"]
[WhiteClock "0:00:03"]
[BlackClock "0:00:08"]

1. e4 {[%clk 0:03:00]}  c5 {[%clk 0:02:59]} 2. Nf3 {[%clk 0:02:57]}  d6 {[%clk 0:03:00]} 3. d4 {[%clk 0:02:58]}  cxd4 {[%clk 0:03:00]} 4. Nxd4 {[%clk 0:02:58]}  Nf6 {[%clk 0:03:01]} 5. Nc3 {[%clk 0:02:59]}  a6 {[%clk 0:03:01]} 6. Bc4 {[%clk 0:02:59]}  e6 {[%clk 0:03:01]} 7. Bb3 {[%clk 0:03:00]}  Nbd7 {[%clk 0:03:02]} 8. Bg5 {[%clk 0:03:00]}  Nc5 {[%clk 0:03:00]} 9. O-O {[%clk 0:03:00]}  Be7 {[%clk 0:03:01]} 10. Re1 {[%clk 0:02:57]}  O-O {[%clk 0:03:00]} 11. Qd2 {[%clk 0:02:57]}  Nxb3 {[%clk 0:03:00]} 12. axb3 {[%clk 0:02:57]}  Qc7 {[%clk 0:03:00]} 13. Rad1 {[%clk 0:02:55]}  b6 {[%clk 0:02:59]} 14. f4 {[%clk 0:02:54]}  Bb7 {[%clk 0:02:58]} 15. f5 {[%clk 0:02:51]}  e5 {[%clk 0:02:53]} 16. Nf3 {[%clk 0:02:50]}  Rac8 {[%clk 0:02:49]} 17. Re2 {[%clk 0:02:49]}  b5 {[%clk 0:02:39]} 18. Bxf6 {[%clk 0:02:48]}  Bxf6 {[%clk 0:02:39]} 19. Nd5 {[%clk 0:02:49]}  Bxd5 {[%clk 0:02:39]} 20. Qxd5 {[%clk 0:02:49]}  Qb6+ {[%clk 0:02:39]} 21. Kf1 {[%clk 0:02:47]}  Rfd8 {[%clk 0:02:38]} 22. b4 {[%clk 0:02:47]}  Rc4 {[%clk 0:02:32]} 23. c3 {[%clk 0:02:46]}  h6 {[%clk 0:02:24]} 24. g4 {[%clk 0:02:43]}  a5 {[%clk 0:02:16]} 25. bxa5 {[%clk 0:02:43]}  Qxa5 {[%clk 0:02:16]} 26. h4 {[%clk 0:02:43]}  Rc5 {[%clk 0:02:04]} 27. Qb7 {[%clk 0:02:23]}  Qa4 {[%clk 0:01:57]} 28. Rdd2 {[%clk 0:02:19]}  b4 {[%clk 0:01:02]} 29. cxb4 {[%clk 0:01:57]}  Rb5 {[%clk 0:01:01]} 30. Qc7 {[%clk 0:01:52]}  Qxb4 {[%clk 0:00:51]} 31. g5 {[%clk 0:01:50]}  Rc5 {[%clk 0:00:51]} 32. Qa7 {[%clk 0:01:41]}  Ra5 {[%clk 0:00:44]} 33. Qe3 {[%clk 0:01:36]}  hxg5 {[%clk 0:00:40]} 34. hxg5 {[%clk 0:01:37]}  Be7 {[%clk 0:00:41]} 35. Kg2 {[%clk 0:01:09]}  Qb7 {[%clk 0:00:20]} 36. b4 {[%clk 0:00:58]}  Rb5 {[%clk 0:00:18]} 37. g6 {[%clk 0:00:58]}  Rxb4 {[%clk 0:00:16]} 38. gxf7+ {[%clk 0:00:57]}  Kxf7 {[%clk 0:00:16]} 39. Rd5 {[%clk 0:00:50]}  Qb6 {[%clk 0:00:13]} 40. Ng5+ {[%clk 0:00:46]}  Kg8 {[%clk 0:00:13]} 41. Qxb6 {[%clk 0:00:30]}  Rxb6 {[%clk 0:00:14]} 42. Ne6 {[%clk 0:00:30]}  Rc8 {[%clk 0:00:13]} 43. Kh2 {[%clk 0:00:18]}  Rc4 {[%clk 0:00:12]} 44. Rg2 {[%clk 0:00:18]}  Bf6 {[%clk 0:00:12]} 45. Nxg7 {[%clk 0:00:12]}  Bxg7 {[%clk 0:00:09]} 46. f6 {[%clk 0:00:12]}  Rxe4 {[%clk 0:00:08]} 47. Rxg7+ {[%clk 0:00:12]}  Kf8 {[%clk 0:00:08]} 48. Ra5 {[%clk 0:00:12]}  Rb2+ {[%clk 0:00:06]} 49. Kg3 {[%clk 0:00:10]}  Rb3+ {[%clk 0:00:07]} 50. Kf2 {[%clk 0:00:10]}  Rf4+ {[%clk 0:00:07]} 51. Ke2 {[%clk 0:00:11]}  Rxf6 {[%clk 0:00:08]} 52. Rc7 {[%clk 0:00:11]}  Rb2+ {[%clk 0:00:05]} 53. Ke3 {[%clk 0:00:10]}  Rb8 {[%clk 0:00:06]} 54. Raa7 {[%clk 0:00:10]}  Rh6 {[%clk 0:00:06]} 55. Rd7 {[%clk 0:00:09]}  Kg8 {[%clk 0:00:06]} 56. Ke4 {[%clk 0:00:09]}  Kh8 {[%clk 0:00:06]} 57. Kd5 {[%clk 0:00:07]}  Re8 {[%clk 0:00:06]} 58. Rxd6 {[%clk 0:00:04]}  Rxd6+ {[%clk 0:00:07]} 59. Kxd6 {[%clk 0:00:05]}  e4 {[%clk 0:00:07]} 60. Ra2 {[%clk 0:00:05]}  Kg7 {[%clk 0:00:08]} 61. Kd5 {[%clk 0:00:04]}  Kg6 {[%clk 0:00:08]} 62. Rf2 {[%clk 0:00:05]}  Kg5 {[%clk 0:00:07]} 63. Kd4 {[%clk 0:00:04]}  e3 {[%clk 0:00:08]} 64. Rg2+ {[%clk 0:00:03]}  Kf4 {[%clk 0:00:08]} 65. Rg8 {[%clk 0:00:04]}  Rxg8 {[%clk 0:00:08]} 66. Kc4 {[%clk 0:00:03]}  Kf3 {[%clk 0:00:08]} 0-1


[Site "https://www.chess.com"]

[Event "Titled Tuesday Blitz January 18 2022"]
[White "Nguyen Hong Nhung"]
[Black "Sargsyan, Anna M."]
[WhiteFideId "12412201"]
[BlackFideId "13308130"]
[WhiteElo "1661"]
[BlackElo "2271"]
[Result "0-1"]
[Round "10"]
[TimeControl "180+1"]
[Date "2022.01.18"]
[WhiteClock "0:00:09"]
[BlackClock "0:01:03"]

1. e4 {[%clk 0:02:25]}  c6 {[%clk 0:03:00]} 2. d4 {[%clk 0:02:24]}  d5 {[%clk 0:03:01]} 3. f3 {[%clk 0:02:25]}  dxe4 {[%clk 0:03:00]} 4. fxe4 {[%clk 0:02:25]}  e5 {[%clk 0:03:01]} 5. Nf3 {[%clk 0:02:26]}  Bg4 {[%clk 0:03:01]} 6. Bc4 {[%clk 0:02:26]}  Nd7 {[%clk 0:03:01]} 7. O-O {[%clk 0:02:24]}  Ngf6 {[%clk 0:03:01]} 8. c3 {[%clk 0:02:23]}  Bd6 {[%clk 0:03:01]} 9. Bg5 {[%clk 0:02:21]}  O-O {[%clk 0:02:58]} 10. Na3 {[%clk 0:02:16]}  Qc7 {[%clk 0:02:58]} 11. h3 {[%clk 0:02:06]}  Bh5 {[%clk 0:02:57]} 12. Nc2 {[%clk 0:02:05]}  Nxe4 {[%clk 0:02:56]} 13. Bh4 {[%clk 0:02:02]}  Rae8 {[%clk 0:02:51]} 14. Qe1 {[%clk 0:01:58]}  exd4 {[%clk 0:02:50]} 15. cxd4 {[%clk 0:01:50]}  Ng3 {[%clk 0:02:48]} 16. Qf2 {[%clk 0:01:46]}  Nxf1 {[%clk 0:02:43]} 17. Rxf1 {[%clk 0:01:47]}  b5 {[%clk 0:02:37]} 18. Bb3 {[%clk 0:01:45]}  a5 {[%clk 0:02:35]} 19. a3 {[%clk 0:01:43]}  c5 {[%clk 0:02:34]} 20. Kh1 {[%clk 0:01:32]}  c4 {[%clk 0:02:33]} 21. Ba2 {[%clk 0:01:32]}  Nb6 {[%clk 0:02:25]} 22. Ne3 {[%clk 0:01:31]}  Bg6 {[%clk 0:02:17]} 23. Bb1 {[%clk 0:01:21]}  Qd7 {[%clk 0:01:59]} 24. Ng4 {[%clk 0:01:06]}  Bxb1 {[%clk 0:01:45]} 25. Rxb1 {[%clk 0:01:07]}  f6 {[%clk 0:01:44]} 26. Rf1 {[%clk 0:01:02]}  Nd5 {[%clk 0:01:43]} 27. Bg3 {[%clk 0:01:00]}  Bxg3 {[%clk 0:01:40]} 28. Qxg3 {[%clk 0:01:01]}  Kh8 {[%clk 0:01:41]} 29. Qh4 {[%clk 0:00:59]}  Ne3 {[%clk 0:01:32]} 30. Nxe3 {[%clk 0:00:57]}  Rxe3 {[%clk 0:01:27]} 31. Ne5 {[%clk 0:00:43]}  Qe8 {[%clk 0:01:25]} 32. Ng4 {[%clk 0:00:22]}  Re4 {[%clk 0:01:22]} 33. Qf2 {[%clk 0:00:20]}  Qd8 {[%clk 0:01:13]} 34. Rd1 {[%clk 0:00:18]}  Rfe8 {[%clk 0:01:12]} 35. d5 {[%clk 0:00:18]}  Qd6 {[%clk 0:01:11]} 36. Kg1 {[%clk 0:00:14]}  b4 {[%clk 0:01:09]} 37. axb4 {[%clk 0:00:14]}  axb4 {[%clk 0:01:10]} 38. Qc2 {[%clk 0:00:08]}  h5 {[%clk 0:01:02]} 39. Nf2 {[%clk 0:00:08]}  Re1+ {[%clk 0:01:02]} 40. Rxe1 {[%clk 0:00:09]}  Rxe1# {[%clk 0:01:03]} 0-1


[Site "https://www.chess.com"]

[Event "Titled Tuesday Blitz January 18 2022"]
[White "Padmini, Rout"]
[Black "Ljukin, Sergei"]
[WhiteFideId "5029295"]
[BlackFideId "14102200"]
[WhiteElo "2181"]
[BlackElo "2312"]
[Result "1-0"]
[Round "10"]
[TimeControl "180+1"]
[Date "2022.01.18"]
[WhiteClock "0:00:07"]
[BlackClock "0:00:05"]

1. c4 {[%clk 0:02:27]}  c6 {[%clk 0:02:54]} 2. Nc3 {[%clk 0:02:25]}  d5 {[%clk 0:02:55]} 3. cxd5 {[%clk 0:02:26]}  cxd5 {[%clk 0:02:55]} 4. d4 {[%clk 0:02:27]}  Nf6 {[%clk 0:02:55]} 5. Nf3 {[%clk 0:02:28]}  Nc6 {[%clk 0:02:56]} 6. Bf4 {[%clk 0:02:28]}  Bf5 {[%clk 0:02:56]} 7. e3 {[%clk 0:02:28]}  e6 {[%clk 0:02:57]} 8. Bd3 {[%clk 0:02:28]}  Bxd3 {[%clk 0:02:56]} 9. Qxd3 {[%clk 0:02:29]}  Be7 {[%clk 0:02:57]} 10. O-O {[%clk 0:02:29]}  O-O {[%clk 0:02:57]} 11. Rac1 {[%clk 0:02:30]}  Rc8 {[%clk 0:02:57]} 12. a3 {[%clk 0:02:29]}  Na5 {[%clk 0:02:58]} 13. Nd2 {[%clk 0:02:24]}  Qd7 {[%clk 0:02:56]} 14. h3 {[%clk 0:02:24]}  a6 {[%clk 0:02:53]} 15. Rc2 {[%clk 0:02:14]}  Nc4 {[%clk 0:02:50]} 16. Rfc1 {[%clk 0:02:12]}  b5 {[%clk 0:02:50]} 17. Ne2 {[%clk 0:02:06]}  h6 {[%clk 0:02:40]} 18. Nb1 {[%clk 0:02:05]}  Ne4 {[%clk 0:02:36]} 19. f3 {[%clk 0:02:03]}  Ned6 {[%clk 0:02:29]} 20. b3 {[%clk 0:02:00]}  Nb6 {[%clk 0:02:24]} 21. Rc5 {[%clk 0:01:41]}  Nf5 {[%clk 0:02:20]} 22. Rc7 {[%clk 0:01:33]}  Rxc7 {[%clk 0:01:54]} 23. Rxc7 {[%clk 0:01:34]}  Qd8 {[%clk 0:01:54]} 24. Rc6 {[%clk 0:01:31]}  Bd6 {[%clk 0:01:42]} 25. Bxd6 {[%clk 0:01:22]}  Nxd6 {[%clk 0:01:42]} 26. Qc3 {[%clk 0:01:22]}  Qb8 {[%clk 0:01:39]} 27. Qc5 {[%clk 0:01:20]}  Ndc8 {[%clk 0:01:29]} 28. Rc7 {[%clk 0:01:13]}  Rd8 {[%clk 0:01:19]} 29. Nd2 {[%clk 0:01:04]}  Nd6 {[%clk 0:01:15]} 30. Rc6 {[%clk 0:00:57]}  Ndc8 {[%clk 0:01:14]} 31. Nf4 {[%clk 0:00:54]}  Rd6 {[%clk 0:01:12]} 32. Rc7 {[%clk 0:00:46]}  Rd7 {[%clk 0:01:04]} 33. Rc6 {[%clk 0:00:43]}  Rd6 {[%clk 0:01:03]} 34. Nd3 {[%clk 0:00:43]}  Rxc6 {[%clk 0:00:51]} 35. Qxc6 {[%clk 0:00:44]}  Qd6 {[%clk 0:00:48]} 36. Qe8+ {[%clk 0:00:35]}  Qf8 {[%clk 0:00:46]} 37. Qc6 {[%clk 0:00:32]}  Qxa3 {[%clk 0:00:45]} 38. Ne5 {[%clk 0:00:31]}  Qe7 {[%clk 0:00:16]} 39. Nd3 {[%clk 0:00:22]}  Qd6 {[%clk 0:00:14]} 40. Qb7 {[%clk 0:00:20]}  a5 {[%clk 0:00:12]} 41. Nc5 {[%clk 0:00:16]}  a4 {[%clk 0:00:10]} 42. bxa4 {[%clk 0:00:12]}  bxa4 {[%clk 0:00:10]} 43. Qa6 {[%clk 0:00:11]}  Qc6 {[%clk 0:00:10]} 44. f4 {[%clk 0:00:10]}  Nd6 {[%clk 0:00:09]} 45. Nf3 {[%clk 0:00:08]}  Ndc4 {[%clk 0:00:09]} 46. Ne5 {[%clk 0:00:08]}  a3 {[%clk 0:00:08]} 47. Nxc6 {[%clk 0:00:07]}  a2 {[%clk 0:00:05]} 48. Qxa2 {[%clk 0:00:07]} 1-0


[Site "https://www.chess.com"]

[Event "Titled Tuesday Blitz January 18 2022"]
[White "Papasimakopoulos, Alexandros"]
[Black "Gontcharov, Vladislav"]
[WhiteFideId "4244125"]
[BlackFideId "4123492"]
[WhiteElo "2340"]
[BlackElo "2503"]
[Result "1/2-1/2"]
[Round "10"]
[TimeControl "180+1"]
[Date "2022.01.18"]
[WhiteClock "0:00:05"]
[BlackClock "0:00:04"]

1. d4 {[%clk 0:01:28]}  Nf6 {[%clk 0:02:53]} 2. c4 {[%clk 0:01:29]}  c5 {[%clk 0:02:53]} 3. d5 {[%clk 0:01:29]}  e6 {[%clk 0:02:52]} 4. Nc3 {[%clk 0:01:29]}  exd5 {[%clk 0:02:53]} 5. cxd5 {[%clk 0:01:30]}  d6 {[%clk 0:02:53]} 6. Nf3 {[%clk 0:01:31]}  g6 {[%clk 0:02:53]} 7. Bf4 {[%clk 0:01:31]}  a6 {[%clk 0:02:53]} 8. a4 {[%clk 0:01:31]}  Bg7 {[%clk 0:02:53]} 9. h3 {[%clk 0:01:32]}  O-O {[%clk 0:02:53]} 10. e3 {[%clk 0:01:32]}  Ne8 {[%clk 0:02:50]} 11. Nd2 {[%clk 0:01:32]}  Nd7 {[%clk 0:02:49]} 12. Be2 {[%clk 0:01:33]}  Qe7 {[%clk 0:02:49]} 13. O-O {[%clk 0:01:33]}  f5 {[%clk 0:02:47]} 14. Nc4 {[%clk 0:01:33]}  Ne5 {[%clk 0:02:46]} 15. Nb6 {[%clk 0:01:34]}  Rb8 {[%clk 0:02:45]} 16. a5 {[%clk 0:01:34]}  Bd7 {[%clk 0:02:45]} 17. Qc2 {[%clk 0:01:34]}  Nc7 {[%clk 0:02:44]} 18. Nxd7 {[%clk 0:01:32]}  Qxd7 {[%clk 0:02:41]} 19. Rab1 {[%clk 0:01:32]}  Rbc8 {[%clk 0:02:33]} 20. Na4 {[%clk 0:01:32]}  Qe7 {[%clk 0:02:24]} 21. Nb6 {[%clk 0:01:32]}  Rce8 {[%clk 0:02:21]} 22. b4 {[%clk 0:01:32]}  cxb4 {[%clk 0:02:17]} 23. Rfc1 {[%clk 0:01:31]}  Nb5 {[%clk 0:02:11]} 24. Bxb5 {[%clk 0:01:24]}  axb5 {[%clk 0:02:10]} 25. Rxb4 {[%clk 0:01:22]}  g5 {[%clk 0:02:10]} 26. Bxe5 {[%clk 0:01:19]}  Bxe5 {[%clk 0:02:08]} 27. Qc7 {[%clk 0:01:16]}  f4 {[%clk 0:01:40]} 28. Qxe7 {[%clk 0:01:15]}  Rxe7 {[%clk 0:01:40]} 29. e4 {[%clk 0:01:14]}  f3 {[%clk 0:01:40]} 30. g3 {[%clk 0:01:13]}  h5 {[%clk 0:01:38]} 31. Rxb5 {[%clk 0:01:11]}  h4 {[%clk 0:01:32]} 32. g4 {[%clk 0:01:11]}  Rf4 {[%clk 0:01:31]} 33. Rc4 {[%clk 0:01:08]}  Bg7 {[%clk 0:01:13]} 34. Rbb4 {[%clk 0:01:06]}  Bf8 {[%clk 0:01:12]} 35. Kf1 {[%clk 0:01:04]}  Rff7 {[%clk 0:01:03]} 36. Ke1 {[%clk 0:01:04]}  Bg7 {[%clk 0:00:57]} 37. Kd2 {[%clk 0:01:04]}  Be5 {[%clk 0:00:57]} 38. Rb1 {[%clk 0:01:00]}  Rf4 {[%clk 0:00:55]} 39. Kd3 {[%clk 0:01:00]}  Rf8 {[%clk 0:00:51]} 40. Rc8 {[%clk 0:00:59]}  Rxc8 {[%clk 0:00:50]} 41. Nxc8 {[%clk 0:01:00]}  Rc7 {[%clk 0:00:50]} 42. Nb6 {[%clk 0:00:57]}  Rc3+ {[%clk 0:00:46]} 43. Kd2 {[%clk 0:00:57]}  Ra3 {[%clk 0:00:45]} 44. Nc4 {[%clk 0:00:55]}  Bf4+ {[%clk 0:00:44]} 45. Kc2 {[%clk 0:00:50]}  Ra2+ {[%clk 0:00:41]} 46. Rb2 {[%clk 0:00:49]}  Ra1 {[%clk 0:00:39]} 47. e5 {[%clk 0:00:23]}  Bxe5 {[%clk 0:00:27]} 48. Rxb7 {[%clk 0:00:22]}  Bd4 {[%clk 0:00:17]} 49. Nd2 {[%clk 0:00:15]}  Bxf2 {[%clk 0:00:15]} 50. Nxf3 {[%clk 0:00:15]}  Be3 {[%clk 0:00:16]} 51. Kd3 {[%clk 0:00:14]}  Bf4 {[%clk 0:00:14]} 52. Nd4 {[%clk 0:00:13]}  Rxa5 {[%clk 0:00:14]} 53. Ke4 {[%clk 0:00:12]}  Ra4 {[%clk 0:00:14]} 54. Rb3 {[%clk 0:00:13]}  Kf7 {[%clk 0:00:13]} 55. Kd3 {[%clk 0:00:11]}  Kf6 {[%clk 0:00:12]} 56. Nf3 {[%clk 0:00:09]}  Ra6 {[%clk 0:00:10]} 57. Rc3 {[%clk 0:00:07]}  Ra2 {[%clk 0:00:09]} 58. Rc8 {[%clk 0:00:03]}  Rg2 {[%clk 0:00:08]} 59. Rf8+ {[%clk 0:00:03]}  Ke7 {[%clk 0:00:07]} 60. Rf5 {[%clk 0:00:03]}  Rg3 {[%clk 0:00:07]} 61. Ke4 {[%clk 0:00:03]}  Rxh3 {[%clk 0:00:07]} 62. Nxg5 {[%clk 0:00:04]}  Bxg5 {[%clk 0:00:07]} 63. Rxg5 {[%clk 0:00:05]}  Rg3 {[%clk 0:00:07]} 64. Kf4 {[%clk 0:00:05]}  Rg1 {[%clk 0:00:07]} 65. Rg7+ {[%clk 0:00:05]}  Ke8 {[%clk 0:00:05]} 66. Rh7 {[%clk 0:00:05]}  Rd1 {[%clk 0:00:04]} 67. Ke4 {[%clk 0:00:05]}  Re1+ {[%clk 0:00:04]} 68. Kf5 {[%clk 0:00:05]}  Re5+ {[%clk 0:00:05]} 69. Kf6 {[%clk 0:00:06]}  Rxd5 {[%clk 0:00:05]} 70. g5 {[%clk 0:00:06]}  Rd1 {[%clk 0:00:04]} 71. g6 {[%clk 0:00:04]}  Rf1+ {[%clk 0:00:04]} 72. Ke6 {[%clk 0:00:05]}  Kf8 {[%clk 0:00:05]} 73. Rxh4 {[%clk 0:00:02]}  Kg7 {[%clk 0:00:05]} 74. Rg4 {[%clk 0:00:03]}  Rf6+ {[%clk 0:00:04]} 75. Kd5 {[%clk 0:00:04]}  Rxg6 {[%clk 0:00:05]} 76. Rxg6+ {[%clk 0:00:04]}  Kxg6 {[%clk 0:00:04]} 77. Kxd6 {[%clk 0:00:05]} 1/2-1/2


[Site "https://www.chess.com"]

[Event "Titled Tuesday Blitz January 18 2022"]
[White "Papp, Petra"]
[Black "Panesar Vedant"]
[WhiteFideId "739049"]
[BlackFideId "35033018"]
[WhiteElo "2259"]
[BlackElo "1971"]
[Result "0-1"]
[Round "10"]
[TimeControl "180+1"]
[Date "2022.01.18"]
[WhiteClock "0:00:22"]
[BlackClock "0:00:19"]

1. d4 {[%clk 0:03:00]}  Nf6 {[%clk 0:02:53]} 2. c4 {[%clk 0:03:00]}  g6 {[%clk 0:02:53]} 3. Nc3 {[%clk 0:02:59]}  d5 {[%clk 0:02:53]} 4. Nf3 {[%clk 0:02:53]}  Bg7 {[%clk 0:02:52]} 5. cxd5 {[%clk 0:02:52]}  Nxd5 {[%clk 0:02:53]} 6. Qa4+ {[%clk 0:02:52]}  Bd7 {[%clk 0:02:48]} 7. Qa3 {[%clk 0:02:46]}  Bc6 {[%clk 0:02:44]} 8. Bg5 {[%clk 0:02:35]}  Nd7 {[%clk 0:02:25]} 9. e3 {[%clk 0:02:25]}  Nxc3 {[%clk 0:02:09]} 10. bxc3 {[%clk 0:02:22]}  Nf6 {[%clk 0:02:08]} 11. Ne5 {[%clk 0:02:13]}  Qd6 {[%clk 0:01:58]} 12. Qxd6 {[%clk 0:02:08]}  cxd6 {[%clk 0:01:56]} 13. Nxc6 {[%clk 0:02:07]}  bxc6 {[%clk 0:01:57]} 14. Bd3 {[%clk 0:01:57]}  Kd7 {[%clk 0:01:46]} 15. Rb1 {[%clk 0:01:53]}  Rab8 {[%clk 0:01:46]} 16. Kd2 {[%clk 0:01:51]}  Kc7 {[%clk 0:01:43]} 17. Rxb8 {[%clk 0:01:48]}  Rxb8 {[%clk 0:01:43]} 18. Rb1 {[%clk 0:01:48]}  Rxb1 {[%clk 0:01:43]} 19. Bxb1 {[%clk 0:01:49]}  e6 {[%clk 0:01:39]} 20. f3 {[%clk 0:01:41]}  Nd7 {[%clk 0:01:35]} 21. c4 {[%clk 0:01:30]}  c5 {[%clk 0:01:33]} 22. Kc3 {[%clk 0:01:22]}  Nb8 {[%clk 0:01:25]} 23. Bh4 {[%clk 0:01:10]}  Nc6 {[%clk 0:01:20]} 24. Bf2 {[%clk 0:01:10]}  f5 {[%clk 0:01:15]} 25. h4 {[%clk 0:01:07]}  f4 {[%clk 0:00:47]} 26. exf4 {[%clk 0:00:55]}  Bxd4+ {[%clk 0:00:45]} 27. Bxd4 {[%clk 0:00:55]}  Nxd4 {[%clk 0:00:46]} 28. Kd2 {[%clk 0:00:43]}  Nf5 {[%clk 0:00:36]} 29. h5 {[%clk 0:00:39]}  gxh5 {[%clk 0:00:34]} 30. g4 {[%clk 0:00:38]}  hxg4 {[%clk 0:00:32]} 31. fxg4 {[%clk 0:00:39]}  Nh6 {[%clk 0:00:33]} 32. g5 {[%clk 0:00:34]}  Nf5 {[%clk 0:00:33]} 33. Ke2 {[%clk 0:00:33]}  Kc6 {[%clk 0:00:22]} 34. Kf3 {[%clk 0:00:33]}  d5 {[%clk 0:00:23]} 35. Bd3 {[%clk 0:00:23]}  dxc4 {[%clk 0:00:18]} 36. Bxc4 {[%clk 0:00:23]}  Kd6 {[%clk 0:00:19]} 37. Kg4 {[%clk 0:00:22]}  Ne3+ {[%clk 0:00:19]} 0-1


[Site "https://www.chess.com"]

[Event "Titled Tuesday Blitz January 18 2022"]
[White "Pichot, Alan"]
[Black "Nyzhnyk, Illya"]
[WhiteFideId "110973"]
[BlackFideId "14118084"]
[WhiteElo "2543"]
[BlackElo "2694"]
[Result "1/2-1/2"]
[Round "10"]
[TimeControl "180+1"]
[Date "2022.01.18"]
[WhiteClock "0:00:18"]
[BlackClock "0:01:10"]

1. e4 {[%clk 0:03:00]}  c6 {[%clk 0:02:59]} 2. d4 {[%clk 0:03:00]}  d5 {[%clk 0:03:00]} 3. e5 {[%clk 0:03:01]}  Bf5 {[%clk 0:03:00]} 4. h4 {[%clk 0:03:01]}  h5 {[%clk 0:03:01]} 5. Bd3 {[%clk 0:03:02]}  Bxd3 {[%clk 0:03:00]} 6. Qxd3 {[%clk 0:03:02]}  Qa5+ {[%clk 0:03:01]} 7. b4 {[%clk 0:03:03]}  Qa6 {[%clk 0:02:59]} 8. Qf3 {[%clk 0:03:03]}  e6 {[%clk 0:02:58]} 9. c3 {[%clk 0:03:03]}  Ne7 {[%clk 0:02:57]} 10. Ne2 {[%clk 0:03:01]}  Nd7 {[%clk 0:02:56]} 11. a4 {[%clk 0:02:59]}  Nf5 {[%clk 0:02:55]} 12. Ng3 {[%clk 0:02:51]}  Nxg3 {[%clk 0:02:46]} 13. Qxg3 {[%clk 0:02:52]}  g6 {[%clk 0:02:43]} 14. Bg5 {[%clk 0:02:44]}  b6 {[%clk 0:02:43]} 15. Nd2 {[%clk 0:02:40]}  Rc8 {[%clk 0:02:42]} 16. Qf3 {[%clk 0:01:48]}  Be7 {[%clk 0:02:37]} 17. Bxe7 {[%clk 0:01:45]}  Kxe7 {[%clk 0:02:38]} 18. Qe2 {[%clk 0:01:40]}  Qxe2+ {[%clk 0:02:37]} 19. Kxe2 {[%clk 0:01:41]}  c5 {[%clk 0:02:35]} 20. b5 {[%clk 0:01:36]}  cxd4 {[%clk 0:02:34]} 21. cxd4 {[%clk 0:01:37]}  Rc3 {[%clk 0:02:32]} 22. Rhc1 {[%clk 0:01:34]}  Rhc8 {[%clk 0:02:32]} 23. Rxc3 {[%clk 0:01:33]}  Rxc3 {[%clk 0:02:33]} 24. a5 {[%clk 0:01:34]}  Rc7 {[%clk 0:02:30]} 25. Kd3 {[%clk 0:01:30]}  bxa5 {[%clk 0:02:14]} 26. Rxa5 {[%clk 0:01:31]}  Nb6 {[%clk 0:02:15]} 27. Ra1 {[%clk 0:01:27]}  Rb7 {[%clk 0:02:10]} 28. Nb3 {[%clk 0:01:20]}  Nc4 {[%clk 0:02:10]} 29. Nc5 {[%clk 0:01:20]}  Rxb5 {[%clk 0:02:11]} 30. Rxa7+ {[%clk 0:01:20]}  Kf8 {[%clk 0:02:11]} 31. f3 {[%clk 0:00:42]}  Rb2 {[%clk 0:01:44]} 32. g4 {[%clk 0:00:41]}  hxg4 {[%clk 0:01:36]} 33. fxg4 {[%clk 0:00:42]}  Rh2 {[%clk 0:01:36]} 34. Ra8+ {[%clk 0:00:29]}  Kg7 {[%clk 0:01:36]} 35. Ra7 {[%clk 0:00:29]}  Kg8 {[%clk 0:01:28]} 36. Ra8+ {[%clk 0:00:29]}  Kg7 {[%clk 0:01:25]} 37. Ra7 {[%clk 0:00:30]}  Kg8 {[%clk 0:01:17]} 38. Ra8+ {[%clk 0:00:18]}  Kg7 {[%clk 0:01:10]} 1/2-1/2


[Site "https://www.chess.com"]

[Event "Titled Tuesday Blitz January 18 2022"]
[White "Przybylski, Wojciech"]
[Black "Aaditya Dhingra"]
[WhiteFideId "1117599"]
[BlackFideId "25678191"]
[WhiteElo "2133"]
[BlackElo "1789"]
[Result "0-1"]
[Round "10"]
[TimeControl "180+1"]
[Date "2022.01.18"]
[WhiteClock "0:00:01"]
[BlackClock "0:00:03"]

1. e4 {[%clk 0:03:00]}  e5 {[%clk 0:02:58]} 2. Nf3 {[%clk 0:03:00]}  Nc6 {[%clk 0:02:58]} 3. Bb5 {[%clk 0:03:00]}  a6 {[%clk 0:02:58]} 4. Ba4 {[%clk 0:03:00]}  Nf6 {[%clk 0:02:57]} 5. O-O {[%clk 0:03:00]}  Be7 {[%clk 0:02:58]} 6. Re1 {[%clk 0:03:00]}  b5 {[%clk 0:02:58]} 7. Bb3 {[%clk 0:03:00]}  d6 {[%clk 0:02:58]} 8. c3 {[%clk 0:02:57]}  O-O {[%clk 0:02:57]} 9. h3 {[%clk 0:02:56]}  Nb8 {[%clk 0:02:57]} 10. a4 {[%clk 0:02:52]}  Bb7 {[%clk 0:02:55]} 11. d3 {[%clk 0:02:51]}  Nbd7 {[%clk 0:02:55]} 12. a5 {[%clk 0:02:50]}  c5 {[%clk 0:02:54]} 13. Nbd2 {[%clk 0:02:48]}  h6 {[%clk 0:02:48]} 14. d4 {[%clk 0:02:47]}  Re8 {[%clk 0:02:44]} 15. d5 {[%clk 0:02:41]}  c4 {[%clk 0:02:43]} 16. Bc2 {[%clk 0:02:39]}  Bf8 {[%clk 0:02:36]} 17. b3 {[%clk 0:02:35]}  cxb3 {[%clk 0:02:34]} 18. Bxb3 {[%clk 0:02:27]}  Nc5 {[%clk 0:02:31]} 19. Bc2 {[%clk 0:02:26]}  Rc8 {[%clk 0:02:28]} 20. Ba3 {[%clk 0:02:22]}  g6 {[%clk 0:02:24]} 21. Bb4 {[%clk 0:02:18]}  h5 {[%clk 0:02:17]} 22. Nf1 {[%clk 0:02:17]}  Bh6 {[%clk 0:02:14]} 23. Ng3 {[%clk 0:02:13]}  Nfd7 {[%clk 0:02:07]} 24. Qe2 {[%clk 0:02:08]}  Bf4 {[%clk 0:02:02]} 25. c4 {[%clk 0:01:57]}  bxc4 {[%clk 0:01:55]} 26. Qxc4 {[%clk 0:01:56]}  Nf6 {[%clk 0:01:29]} 27. Qe2 {[%clk 0:01:53]}  Nh7 {[%clk 0:01:26]} 28. Reb1 {[%clk 0:01:49]}  Re7 {[%clk 0:01:25]} 29. Bd2 {[%clk 0:01:37]}  Qf8 {[%clk 0:01:08]} 30. Rb6 {[%clk 0:01:31]}  Rec7 {[%clk 0:00:48]} 31. Bd1 {[%clk 0:01:20]}  Nd7 {[%clk 0:00:42]} 32. Rb2 {[%clk 0:01:12]}  Qh6 {[%clk 0:00:40]} 33. Bb4 {[%clk 0:01:08]}  h4 {[%clk 0:00:31]} 34. Nf1 {[%clk 0:01:05]}  g5 {[%clk 0:00:30]} 35. Ne3 {[%clk 0:00:48]}  Bxe3 {[%clk 0:00:29]} 36. Qxe3 {[%clk 0:00:48]}  f5 {[%clk 0:00:28]} 37. exf5 {[%clk 0:00:45]}  Bxd5 {[%clk 0:00:20]} 38. Bb3 {[%clk 0:00:43]}  Bxb3 {[%clk 0:00:20]} 39. Qxb3+ {[%clk 0:00:43]}  Kf8 {[%clk 0:00:19]} 40. Qe6 {[%clk 0:00:41]}  Qxe6 {[%clk 0:00:18]} 41. fxe6 {[%clk 0:00:40]}  Nc5 {[%clk 0:00:18]} 42. Rc2 {[%clk 0:00:23]}  Ke7 {[%clk 0:00:17]} 43. Bd2 {[%clk 0:00:13]}  Ne4 {[%clk 0:00:14]} 44. Rxc7+ {[%clk 0:00:12]}  Rxc7 {[%clk 0:00:14]} 45. Be3 {[%clk 0:00:12]}  Kxe6 {[%clk 0:00:14]} 46. Rb1 {[%clk 0:00:12]}  Rg7 {[%clk 0:00:09]} 47. Rb6 {[%clk 0:00:11]}  Nhf6 {[%clk 0:00:09]} 48. Rxa6 {[%clk 0:00:11]}  g4 {[%clk 0:00:08]} 49. hxg4 {[%clk 0:00:11]}  Nxg4 {[%clk 0:00:08]} 50. Rb6 {[%clk 0:00:08]}  h3 {[%clk 0:00:08]} 51. Ne1 {[%clk 0:00:02]}  h2+ {[%clk 0:00:07]} 52. Kf1 {[%clk 0:00:02]}  h1=Q+ {[%clk 0:00:05]} 53. Ke2 {[%clk 0:00:03]}  Nxe3 {[%clk 0:00:05]} 54. fxe3 {[%clk 0:00:03]}  Rxg2+ {[%clk 0:00:05]} 55. Nxg2 {[%clk 0:00:02]}  Qxg2+ {[%clk 0:00:05]} 56. Kd3 {[%clk 0:00:03]}  Kf5 {[%clk 0:00:05]} 57. Kc4 {[%clk 0:00:03]}  Qc2+ {[%clk 0:00:05]} 58. Kb5 {[%clk 0:00:03]}  Qb3+ {[%clk 0:00:05]} 59. Kc6 {[%clk 0:00:03]}  Qc4+ {[%clk 0:00:05]} 60. Kd7 {[%clk 0:00:02]}  Nf6+ {[%clk 0:00:05]} 61. Kxd6 {[%clk 0:00:02]}  Qd5+ {[%clk 0:00:05]} 62. Kc7 {[%clk 0:00:02]}  Ne8+ {[%clk 0:00:04]} 63. Kc8 {[%clk 0:00:01]}  Qxa5 {[%clk 0:00:04]} 64. e4+ {[%clk 0:00:01]}  Kxe4 {[%clk 0:00:03]} 0-1


[Site "https://www.chess.com"]